bitfinex-derivatives/quotes_ETHF0:USTF0_20250530
["timestamp","ask_amount","ask_price","bid_price","bid_amount"]
[1748616836548,0.77171,2591.0,2590.9,0.77169]
[1748616837256,0.77178,2590.7,2590.6,0.6699]
[1748616837450,3.97958,2590.7,2590.6,1.44171]
[1748616837647,0.77177,2590.8,2590.7,0.77178]
[1748616838253,1.41114,2590.9,2590.8,0.77175]
[1748616838459,0.77178,2590.8,2590.7,0.77175]
[1748616838755,0.77178,2590.7,2590.6,1.44169]
[1748616840154,3.97958,2590.7,2590.6,1.44171]
[1748616840353,0.77178,2590.7,2590.6,1.44171]
[1748616840659,3.97958,2590.7,2590.6,1.44171]
[1748616841956,0.77178,2590.7,2590.6,1.44171]
[1748616842852,0.7719,2590.3,2590.2,0.00578626]
[1748616843158,3.9797,2590.3,2590.2,0.00578626]
[1748616843355,3.9797,2590.3,2590.2,0.77771626]
[1748616843856,3.9797,2590.3,2590.2,0.00578626]
[1748616844558,3.9797,2590.3,2590.2,0.77771626]
[1748616844755,4.4501,2590.8,2590.3,1.92975]
[1748616844961,3.2078,2590.8,2590.7,0.77178]
[1748616845160,1.41114,2590.9,2590.8,0.57885]
[1748616845458,0.77176,2590.8,2590.7,0.77176]
[1748616845661,0.6394,2590.9,2590.3,0.6452]
[1748616845854,0.77177,2590.8,2590.7,0.77176]
[1748616846158,0.6394,2590.9,2590.3,0.6452]
[1748616846159,1.41113,2590.9,2590.8,0.77175]
[1748616846554,0.77177,2590.8,2590.7,0.77176]
[1748616846954,0.6394,2590.9,2590.6,1.92953]
[1748616847164,3.97948,2591.1,2591.0,0.77169]
[1748616847857,3.2078,2591.1,2591.0,0.77169]
[1748616848763,3.97946,2591.1,2591.0,0.77169]
[1748616849261,0.7717,2591.0,2590.9,0.77169]
[1748616849460,3.97948,2591.1,2591.0,0.77169]
[1748616849861,3.2078,2591.4,2591.3,0.7716]
[1748616850252,0.77159,2591.4,2591.3,0.77158]
[1748616850456,1.92879,2591.6,2590.9,2.55009]
[1748616850662,3.97943,2591.3,2591.2,0.77162]
[1748616851656,0.77166,2591.2,2591.1,0.77165]
[1748616852067,5.13682,2591.3,2590.8,4.9202]
[1748616852268,0.77165,2591.2,2591.1,0.77164]
[1748616852956,0.77168,2591.1,2591.0,0.77167]
[1748616853565,0.77172,2590.9,2590.8,0.6452]
[1748616853862,0.77172,2590.9,2590.8,1.9568]
[1748616854256,0.77178,2590.7,2590.6,4.275]
[1748616854460,0.77178,2590.7,2590.6,5.5866]
[1748616854769,0.7719,2590.3,2590.2,0.00578626]
[1748616855063,0.7719,2590.3,2590.2,0.77771626]
[1748616855466,3.2078,2590.4,2590.3,0.7719]
[1748616855659,3.2078,2590.4,2590.3,2.0236]
[1748616855855,3.97967,2590.4,2590.3,1.2517]
[1748616856063,3.97967,2590.4,2590.3,2.0236]
[1748616856866,1.9504,2590.6,2590.3,1.2517]
[1748616857169,0.77185,2590.5,2590.4,0.77184]
[1748616857363,1.40622,2590.6,2590.5,0.77184]
[1748616857665,3.2078,2590.7,2590.6,0.77181]
[1748616857861,3.2078,2590.8,2590.7,0.77178]
[1748616858965,0.6236,2591.2,2591.1,0.77166]
[1748616859267,4.65182,2591.3,2591.2,0.77163]
[1748616860166,0.77164,2591.2,2591.1,0.77163]
[1748616860367,4.65182,2591.3,2591.2,0.77163]
[1748616862869,3.97942,2591.3,2591.2,0.77163]
[1748616863065,3.2078,2591.3,2591.2,0.77163]
[1748616863468,3.9794,2591.3,2591.2,0.77163]
[1748616863765,3.2078,2591.3,2591.2,0.77163]
[1748616863964,1.38689,2591.4,2591.3,0.7716]
[1748616864168,1.93450626,2591.7,2591.3,0.7716]
[1748616864169,0.00578626,2591.7,2591.5,0.77154]
[1748616864363,0.77151,2591.6,2591.5,0.77154]
[1748616864564,0.77154,2591.5,2591.4,2.06785]
[1748616865468,0.77154,2591.5,2591.4,1.2963]
[1748616865764,0.77157,2591.4,2591.3,0.77159]
[1748616866265,0.77157,2591.4,2591.0,8.18333]
[1748616866266,0.77166,2591.1,2591.0,1.3358]
[1748616866473,0.77164,2591.2,2591.1,0.77163]
[1748616867367,3.8258,2591.3,2591.0,1.3358]
[1748616867673,0.77165,2591.2,2591.1,0.77163]
[1748616867874,4.59741,2591.3,2591.2,0.77163]
[1748616868172,0.7716,2591.3,2591.2,0.77163]
[1748616868361,0.77159,2591.4,2591.3,0.77159]
[1748616868767,0.77161,2591.3,2591.2,0.77161]
[1748616869567,0.77158,2591.4,2591.3,0.77158]
[1748616870672,2.5518,2591.5,2591.2,0.77161]
[1748616870673,0.77161,2591.3,2591.2,0.77161]
[1748616870975,3.97941,2591.3,2591.2,0.77161]
[1748616872274,3.2078,2591.3,2591.2,0.77161]
[1748616872768,3.9794,2591.3,2591.2,0.77161]
[1748616873977,2.5518,2591.5,2591.3,0.77158]
[1748616874574,2.5518,2591.5,2590.9,4.8851]
[1748616874880,3.2078,2591.3,2590.9,6.1105]
[1748616875069,3.2078,2591.3,2591.1,0.77165]
[1748616875271,3.2078,2591.3,2591.2,0.77163]
[1748616877078,3.2078,2591.6,2591.3,1.92901]
[1748616877376,3.2078,2591.6,2591.5,0.77154]
[1748616878075,3.2078,2591.6,2591.5,2.07414]
[1748616878270,3.2078,2591.6,2591.5,1.3026]
[1748616879676,3.2078,2591.6,2591.2,0.77161]
[1748616879877,4.4622,2591.6,2591.1,1.3228]
[1748616880072,4.4622,2591.6,2591.3,0.77159]
[1748616880275,4.4622,2591.6,2591.1,3.25196]
[1748616880575,3.2078,2591.6,2591.2,1.92909]
[1748616880771,3.2078,2591.6,2591.5,0.77154]
[1748616882779,0.00578626,2591.7,2591.6,0.77151]
[1748616889183,0.00578626,2591.7,2591.6,1.40961]
[1748616891694,0.15293,2592.2,2592.1,0.77137]
[1748616894081,3.2078,2592.9,2592.5,1.92806]
[1748616894379,3.2078,2593.2,2592.8,0.77113]
[1748616894582,3.2078,2593.2,2592.9,0.77112]
[1748616894983,0.6197,2593.3,2593.2,0.77104]
[1748616895180,3.2078,2593.6,2593.5,0.77095]
[1748616895383,0.95062633,2593.8,2593.3,1.23368626]
[1748616895588,0.6455,2593.8,2593.7,0.77089]
[1748616895986,4.251,2594.2,2593.7,3.2078]
[1748616896290,4.251,2594.2,2593.8,1.2279]
[1748616896686,1.57024942,2594.4,2593.8,1.2279]
[1748616896985,1.57024942,2594.4,2594.0,0.77079]
[1748616897188,1.57024942,2594.4,2594.0,0.77078]
[1748616897389,1.57024942,2594.4,2593.8,1.2279]
[1748616897581,1.57024942,2594.4,2594.1,0.77077]
[1748616897981,1.57024942,2594.4,2593.8,1.2279]
[1748616898187,1.57024942,2594.4,2594.0,0.77078]
[1748616899092,1.57024942,2594.4,2594.1,0.77076]
[1748616899290,1.265,2594.4,2594.1,0.77075]
[1748616899487,1.265,2594.4,2593.8,1.2279]
[1748616899686,1.265,2594.4,2594.1,0.77076]
[1748616899896,1.265,2594.4,2593.8,1.2279]
[1748616900100,1.265,2594.4,2593.9,0.77082]
[1748616900298,3.2078,2594.5,2594.0,3.2078]
[1748616900500,3.2078,2594.5,2594.3,0.77069]
[1748616900701,3.2078,2594.5,2594.4,0.77068]
[1748616900900,3.2078,2594.5,2594.3,0.77069]
[1748616901100,3.2078,2594.5,2594.3,0.7707]
[1748616901406,1.237,2594.4,2593.4,0.77096]
[1748616901600,3.2078,2594.0,2593.3,0.00578626]
[1748616901805,3.2078,2593.4,2593.3,0.00578626]
[1748616902304,3.4005,2593.4,2593.3,0.00578626]
[1748616903107,0.1927,2593.4,2593.3,0.77679626]
[1748616903401,0.1927,2593.4,2593.3,3.98459626]
[1748616903600,1.237,2594.6,2593.3,8.21358626]
[1748616903904,0.6631,2594.5,2594.0,0.77078]
[1748616904101,1.2217,2594.4,2594.1,0.77077]
[1748616904407,1.2217,2594.4,2594.0,0.77078]
[1748616904704,1.2217,2594.4,2594.1,0.77076]
[1748616904907,1.2217,2594.4,2593.8,5.5121]
[1748616905107,1.2217,2594.4,2593.9,0.77081]
[1748616905301,1.2217,2594.4,2593.9,2.03291]
[1748616905603,1.2217,2594.4,2594.0,0.77079]
[1748616905807,1.2217,2594.4,2594.0,2.03289]
[1748616906006,1.2217,2594.4,2594.1,0.77077]
[1748616906300,1.2217,2594.4,2594.2,0.77073]
[1748616906506,1.2217,2594.4,2594.1,0.77075]
[1748616906701,1.2217,2594.4,2594.0,1.2621]
[1748616906902,1.2217,2594.4,2594.1,0.77075]
[1748616907303,1.2217,2594.4,2594.1,0.77077]
[1748616907496,1.2217,2594.4,2594.0,1.2621]
[1748616907696,0.6631,2594.5,2594.0,4.4699]
[1748616907896,0.6631,2594.5,2594.3,0.77071]
[1748616908106,0.6631,2594.5,2594.2,0.77072]
[1748616908307,0.6631,2594.5,2594.0,4.4699]
[1748616908504,0.6631,2594.5,2594.4,0.77068]
[1748616908809,0.6631,2594.5,2594.3,0.77069]
[1748616909006,0.6631,2594.5,2594.4,0.77068]
[1748616909204,3.2078,2595.0,2594.2,4.249]
[1748616909411,2.4723,2594.9,2594.3,0.77069]
[1748616909712,2.4723,2594.9,2594.3,0.7707]
[1748616910106,2.78523152,2594.9,2594.4,0.77068]
[1748616910413,1.2372,2594.9,2594.8,0.77056]
[1748616910904,1.2372,2594.9,2594.5,4.4581]
[1748616911110,1.2372,2594.9,2594.5,1.2503]
[1748616911309,0.6127,2594.9,2594.6,0.77062]
[1748616911609,0.6127,2594.9,2594.8,0.77056]
[1748616911810,3.2078,2595.3,2594.7,1.2503]
[1748616911811,3.51756408,2595.3,2595.0,0.77048]
[1748616912008,0.6289,2595.2,2595.1,0.77048]
[1748616912512,3.2078,2595.6,2595.0,5.13402]
[1748616912710,3.8367,2595.6,2595.2,0.77043]
[1748616913006,5.1593,2595.6,2595.1,1.2503]
[1748616913207,3.8367,2595.6,2595.2,0.77043]
[1748616913405,3.8367,2595.6,2595.3,2.0547]
[1748616913605,5.1703,2595.6,2595.5,0.77036]
[1748616913808,3.8367,2595.6,2595.5,0.77036]
[1748616914104,1.3336,2596.1,2595.7,0.77029]
[1748616914308,1.64230964,2596.1,2595.7,0.77029]
[1748616914701,1.64230964,2596.1,2595.7,3.2078]
[1748616914912,1.2844,2596.2,2596.1,0.77018]
[1748616915307,0.6359,2596.2,2596.1,0.77018]
[1748616915811,3.2078,2596.3,2595.9,4.236]
[1748616916107,3.2078,2596.3,2596.2,0.77015]
[1748616916311,5.1816,2597.2,2596.4,0.77008]
[1748616916509,3.2078,2596.9,2596.5,0.00578626]
[1748616916702,1.3379,2596.8,2596.5,0.00578626]
[1748616917310,3.8437,2597.2,2596.6,0.77002]
[1748616917511,1.3379,2597.1,2596.6,1.3517]
[1748616918403,1.3379,2597.1,2596.6,2.12173]
[1748616918610,1.3379,2597.1,2596.6,1.3517]
[1748616918809,1.3379,2597.1,2596.7,2.12169]
[1748616919009,1.3379,2597.1,2596.8,0.76997]
[1748616919218,1.3379,2597.1,2596.8,2.12167]
[1748616919407,1.3379,2597.1,2596.8,1.3517]
[1748616919715,4.14441676,2597.2,2596.8,1.3517]
[1748616919911,0.6359,2597.2,2597.0,0.76988]
[1748616920111,0.6359,2597.2,2597.1,1.2464]
[1748616920812,0.6359,2597.2,2596.6,3.2078]
[1748616921009,1.2867,2597.1,2596.7,1.2464]
[1748616921317,1.2867,2597.1,2596.6,3.2078]
[1748616921616,1.2867,2597.1,2596.7,1.2464]
[1748616921813,1.2867,2597.1,2596.7,2.01639]
[1748616922014,1.2867,2597.1,2596.7,1.2464]
[1748616922215,3.8437,2597.2,2596.8,1.2464]
[1748616922418,0.6359,2597.2,2596.9,0.76992]
[1748616922718,0.6359,2597.2,2597.0,2.00181]
[1748616922913,0.2999501,2597.3,2597.0,1.2319]
[1748616923214,3.2078,2597.5,2597.2,0.76984]
[1748616923412,3.2078,2597.5,2597.3,1.2319]
[1748616923609,3.2078,2597.5,2597.4,0.76979]
[1748616923813,3.2078,2597.8,2597.3,8.6727]
[1748616924110,3.2078,2597.8,2597.5,0.76974]
[1748616924315,3.2078,2597.8,2597.6,1.2319]
[1748616924515,2.5517,2598.2,2597.6,1.2319]
[1748616924516,3.2078,2598.1,2597.6,1.2319]
[1748616924716,1.3029,2598.0,2597.6,1.2319]
[1748616925018,1.61255861,2598.0,2597.6,1.2319]
[1748616925513,1.3029,2598.0,2597.6,1.2319]
[1748616925709,3.2078,2598.1,2597.6,1.2319]
[1748616925916,3.2078,2598.1,2597.7,0.76969]
[1748616926218,3.2078,2598.1,2597.8,1.3118]
[1748616926813,3.52021297,2598.1,2597.3,7.4398]
[1748616927012,1.2818,2598.0,2597.4,1.3118]
[1748616927216,1.2818,2598.0,2597.5,0.76974]
[1748616927414,1.2818,2598.0,2597.6,1.3118]
[1748616927614,1.2818,2598.0,2597.3,3.2078]
[1748616927821,1.29303836,2597.9,2597.3,3.2078]
[1748616928015,2.57483836,2597.8,2597.4,1.3118]
[1748616928215,4.4896,2597.8,2597.4,1.3118]
[1748616931416,1.29270598,2597.7,2597.4,1.3118]
[1748616931616,4.4896,2597.8,2597.4,1.3118]
[1748616931915,1.29329728,2597.7,2597.4,1.3118]
[1748616932120,4.4896,2597.8,2597.4,1.3118]
[1748616932318,1.29330083,2597.7,2597.4,1.3118]
[1748616932517,1.29438575,2597.6,2597.4,1.3118]
[1748616932714,4.4896,2597.8,2597.4,1.3118]
[1748616933027,1.29437857,2597.7,2597.4,2.08157]
[1748616933224,3.2078,2597.8,2597.4,2.08157]
[1748616933423,1.29520809,2597.7,2597.4,2.08157]
[1748616933623,3.2078,2597.8,2597.4,2.08157]
[1748616933920,1.29519556,2597.7,2597.4,2.08157]
[1748616934125,3.2078,2597.8,2597.4,2.08157]
[1748616934316,1.29519095,2597.7,2597.6,0.76973]
[1748616934524,3.2078,2597.8,2597.6,0.76973]
[1748616935221,3.2078,2597.8,2597.3,3.2078]
[1748616935426,3.2078,2597.8,2597.4,1.92449]
[1748616935629,4.4566,2598.2,2597.6,0.7697]
[1748616935926,1.29638139,2598.1,2597.7,0.7697]
[1748616936126,1.29638139,2598.0,2597.8,0.76967]
[1748616936422,1.29638139,2597.9,2597.8,0.76967]
[1748616936625,1.29638139,2597.9,2597.7,0.76969]
[1748616936825,1.29638139,2597.8,2597.7,0.76969]
[1748616937324,1.29638139,2597.8,2597.6,0.6508]
[1748616937626,1.29638139,2597.7,2597.6,0.6508]
[1748616937821,1.29638139,2597.7,2597.6,1.42051]
[1748616938128,1.29829578,2598.1,2597.7,0.7697]
[1748616938334,1.29829353,2598.0,2597.6,1.42051]
[1748616938517,1.29829353,2597.9,2597.7,0.76969]
[1748616938715,1.29829353,2597.8,2597.7,0.76969]
[1748616939024,1.2994502,2598.1,2597.9,0.76963]
[1748616939215,1.29944584,2598.0,2597.8,0.76965]
[1748616939422,1.29944584,2597.9,2597.8,0.76965]
[1748616939621,1.29944584,2598.1,2597.9,0.76963]
[1748616939822,1.30070811,2598.0,2597.9,0.76963]
[1748616940023,1.30070811,2598.0,2597.9,0.76964]
[1748616940324,1.30070811,2598.0,2597.8,0.76966]
[1748616940519,1.30070811,2597.9,2597.8,0.76966]
[1748616942318,1.30070811,2597.9,2597.7,1.42758]
[1748616942527,1.30070811,2597.8,2597.7,1.4276]
[1748616943924,2.29812995,2598.3,2598.0,0.76958]
[1748616944227,1.30223369,2598.2,2598.0,0.76958]
[1748616944421,1.30223369,2598.1,2597.9,0.77539501]
[1748616944623,1.30304924,2598.0,2597.9,0.77539501]
[1748616946518,1.30304924,2598.0,2597.9,0.00577501]
[1748616947229,6.30304924,2598.0,2597.9,0.00577501]
[1748616947432,8.17264924,2598.0,2597.9,0.00577501]
[1748616947627,8.17264924,2598.0,2596.9,3.8253]
[1748616947930,2.30012323,2597.5,2596.9,8.0463]
[1748616948329,2.91122323,2597.5,2597.1,0.76985]
[1748616948530,1.30304924,2597.4,2597.2,0.76985]
[1748616948834,1.30304924,2597.4,2597.0,0.77567501]
[1748616949029,1.30555367,2597.3,2597.1,0.76986]
[1748616949331,1.30555367,2597.2,2597.0,0.00577501]
[1748616949521,1.30555367,2597.1,2597.0,0.00577501]
[1748616950225,1.30555367,2597.1,2597.0,0.77568501]
[1748616951930,1.32078042,2597.1,2597.0,0.77568501]
[1748616952331,1.32078042,2597.1,2597.0,2.08868501]
[1748616954037,3.21353751,2597.6,2597.5,0.76976]
[1748616954229,1.31190938,2597.6,2597.5,0.76976]
[1748616954539,1.31190938,2597.6,2597.5,4.99076]
[1748616954729,3.2078,2598.1,2597.9,0.76962]
[1748616954930,3.2078,2598.1,2598.0,1.3272]
[1748616955130,1.2248,2598.3,2598.0,1.3272]
[1748616955435,1.2248,2598.3,2598.0,2.0968]
[1748616955635,1.2248,2598.3,2598.0,1.3272]
[1748616955933,1.2248,2598.3,2598.0,2.09681]
[1748616956327,1.2248,2598.3,2598.0,1.3272]
[1748616956727,1.2248,2598.3,2598.0,2.09681]
[1748616956928,1.2248,2598.3,2598.0,1.3272]
[1748616957128,1.2248,2598.3,2598.0,2.0968]
[1748616957527,1.2248,2598.3,2598.0,1.3272]
[1748616957732,1.2248,2598.3,2598.0,2.09681]
[1748616958041,4.4796,2598.4,2598.0,2.09681]
[1748616958237,4.4796,2598.4,2598.0,1.3272]
[1748616958438,1.3416,2598.3,2598.0,1.3272]
[1748616958741,4.4796,2598.4,2598.0,1.3272]
[1748616959040,4.4796,2598.4,2598.1,0.76957]
[1748616959440,1.2921,2598.3,2597.7,3.2078]
[1748616959639,1.2921,2598.3,2597.8,2.02406]
[1748616959937,1.2921,2598.3,2597.8,2.02405]
[1748616960236,1.2921,2598.3,2598.0,0.76961]
[1748616960434,1.2921,2598.3,2597.8,1.2544]
[1748616960643,1.2921,2598.3,2597.8,3.17858]
[1748616960939,1.2921,2598.3,2598.0,0.7696]
[1748616961242,1.2921,2598.3,2597.9,0.76963]
[1748616961644,1.2921,2598.3,2597.8,1.2544]
[1748616962035,1.2921,2598.3,2598.0,0.7696]
[1748616962343,1.2921,2598.3,2597.8,1.2544]
[1748616962542,1.2921,2598.3,2597.9,0.76964]
[1748616963045,1.2921,2598.3,2597.8,1.2544]
[1748616963541,1.2921,2598.3,2597.9,0.76963]
[1748616963738,1.2921,2598.3,2598.0,0.76961]
[1748616963937,1.2718,2598.4,2597.8,3.17858]
[1748616964256,1.2718,2598.4,2598.1,0.76956]
[1748616964942,3.2078,2598.7,2598.1,1.92397]
[1748616965247,3.2078,2598.7,2598.4,0.76948]
[1748616965440,2.5754,2598.9,2598.3,3.2078]
[1748616965743,2.5754,2598.9,2598.6,0.76943]
[1748616965936,2.5754,2598.9,2598.7,0.7694]
[1748616966144,1.3038,2598.9,2598.5,5.13147]
[1748616966342,0.30918473,2599.2,2598.8,3.2078]
[1748616966544,3.2078,2599.3,2598.9,1.2368]
[1748616966738,1.29075298,2599.2,2599.1,0.76927]
[1748616966941,3.2078,2599.6,2599.1,3.2078]
[1748616967241,1.3038,2599.9,2599.1,3.2078]
[1748616967242,1.2716,2599.8,2599.4,0.76919]
[1748616967443,1.2716,2599.8,2599.2,1.2368]
[1748616967643,1.6105282,2599.9,2599.6,0.76912]
[1748616967838,1.3038,2599.9,2599.3,0.6465]
[1748616968046,1.3038,2599.9,2599.5,0.76916]
[1748616968244,1.3038,2599.9,2599.8,0.76908]
[1748616968245,0.6658,2599.9,2599.8,0.76908]
[1748616968538,3.51931843,2600.0,2599.8,0.76907]
[1748616968539,0.31151843,2600.0,2599.8,0.76907]
[1748616968743,5.1492,2600.3,2599.9,1.2846]
[1748616968937,5.44875995,2600.3,2599.9,1.2846]
[1748616969451,5.44875995,2600.3,2599.6,0.00577501]
[1748616969744,5.44875995,2600.3,2599.8,0.76908]
[1748616969933,5.44875995,2600.3,2599.6,1.29037501]
[1748616969934,5.44875995,2600.3,2599.7,0.7691]
[1748616970139,5.44875995,2600.3,2599.8,1.2846]
[1748616970741,5.44875995,2600.3,2599.6,0.00577501]
[1748616970742,3.2078,2600.0,2599.6,0.00577501]
[1748616971052,1.3251,2599.9,2599.6,0.00577501]
[1748616972446,3.2078,2599.7,2599.6,0.00577501]
[1748616972741,3.2078,2599.7,2598.9,3.2078]
[1748616972941,3.2078,2599.7,2599.2,1.2265]
[1748616973147,0.653,2599.8,2599.5,0.76915]
[1748616973336,0.653,2599.8,2599.6,1.2265]
[1748616973540,0.653,2599.8,2599.4,0.00577501]
[1748616973740,1.2886,2599.7,2599.4,0.00577501]
[1748616973943,0.653,2599.8,2599.5,0.76915]
[1748616974146,0.653,2599.8,2599.6,1.2698]
[1748616974745,3.21357501,2600.0,2599.7,0.7691]
[1748616974954,0.00577501,2600.0,2599.6,1.2698]
[1748616975151,0.00577501,2600.0,2599.8,0.76906]
[1748616975451,0.00577501,2600.0,2599.9,1.2698]
[1748616976447,0.00577501,2600.0,2599.5,3.2078]
[1748616976741,0.00577501,2600.0,2599.6,1.2698]
[1748616977148,0.00577501,2600.0,2599.6,2.03894]
[1748616977345,0.00577501,2600.0,2599.6,1.2698]
[1748616977546,0.00577501,2600.0,2599.7,1.2915]
[1748616977847,3.21357501,2600.0,2599.4,0.00577501]
[1748616978050,1.2821,2599.9,2599.5,1.2915]
[1748616978251,1.9228,2599.9,2599.5,1.2915]
[1748616978948,3.2078,2599.7,2599.4,0.00577501]
[1748616979153,0.6719,2599.6,2599.4,0.00577501]
[1748616979354,1.954,2599.6,2599.4,0.00577501]
[1748616980053,0.6719,2599.6,2599.4,0.00577501]
[1748616980251,3.2078,2599.7,2599.5,0.76915]
[1748616980454,3.2078,2599.7,2599.6,2.04324]
[1748616980751,3.2078,2599.7,2599.6,1.2741]
[1748616981051,0.00577501,2600.0,2599.6,2.04323]
[1748616981258,0.00577501,2600.0,2599.7,0.76911]
[1748616981559,0.00577501,2600.0,2599.9,0.76905]
[1748616982260,0.00577501,2600.0,2599.9,5.25095]
[1748616982653,0.00577501,2600.0,2599.9,5.87675]
[1748616983054,3.2078,2600.9,2600.0,1.92253]
[1748616983250,3.50894944,2600.9,2600.5,3.2078]
[1748616983463,3.50894944,2600.9,2600.8,0.76878]
[1748616983464,3.2078,2600.9,2600.8,0.76878]
[1748616983959,3.2078,2600.9,2600.6,1.8972]
[1748616984154,1.2317,2601.3,2600.7,1.2553]
[1748616984361,1.2317,2601.3,2600.9,0.76874]
[1748616984659,1.2317,2601.3,2601.0,1.2553]
[1748616985160,3.2078,2601.1,2600.7,0.00577501]
[1748616985356,1.2317,2601.0,2600.7,0.00577501]
[1748616985555,0.6186,2601.0,2600.7,0.00577501]
[1748616985856,3.2078,2601.1,2600.7,0.00577501]
[1748616986263,4.4587,2601.1,2600.7,0.00577501]
[1748616986770,3.2078,2601.1,2600.8,0.76878]
[1748616986956,3.2078,2601.1,2600.9,1.2552]
[1748616987259,0.30630569,2601.3,2600.9,2.02394]
[1748616987460,3.2078,2601.4,2600.9,2.02394]
[1748616987757,4.4587,2601.4,2600.9,2.02394]
[1748616987965,4.4587,2601.4,2600.9,1.2552]
[1748616988159,4.4587,2601.4,2600.7,0.00577501]
[1748616988464,4.76857252,2601.4,2600.7,0.00577501]
[1748616988656,4.76857252,2601.4,2600.7,1.26097501]
[1748616989258,4.76857252,2601.4,2600.8,0.76878]
[1748616989460,4.76857252,2601.4,2600.9,1.2833]
[1748616989960,4.76857252,2601.4,2600.9,2.05204]
[1748616990262,4.76857252,2601.4,2600.9,1.2833]
[1748616992061,4.76857252,2601.4,2600.7,0.00577501]
[1748616992757,1.28632528,2601.3,2600.7,0.00577501]
[1748616992964,1.3198,2601.2,2600.7,0.00577501]
[1748616993854,3.51767252,2601.4,2600.9,0.76874]
[1748616994055,3.51767252,2601.4,2601.0,2.06891]
[1748616994256,3.51767252,2601.4,2601.0,1.3002]
[1748616994457,4.83747252,2601.4,2601.0,1.3002]
[1748616994653,1.28810219,2601.3,2601.0,1.3002]
[1748616994853,4.83747252,2601.4,2600.7,0.00577501]
[1748616995064,1.3198,2601.2,2600.7,2.07477501]
[1748616995257,1.3198,2601.2,2600.7,0.00577501]
[1748616995458,3.8196,2601.1,2600.7,0.00577501]
[1748616995661,1.9693,2601.0,2600.7,0.00577501]
[1748616995860,1.9693,2601.0,2600.7,0.77458501]
[1748616996270,0.6502,2601.0,2600.8,1.3473]
[1748616996469,0.6502,2601.0,2600.8,2.11609]
[1748616996662,0.6502,2601.0,2600.8,1.3473]
[1748616997063,0.6502,2601.0,2600.7,0.00577501]
[1748616997365,3.2078,2600.8,2600.7,0.00577501]
[1748616997962,9.5269,2600.8,2600.7,0.00577501]
[1748616998167,10.81688461,2600.8,2600.7,0.00577501]
[1748616998862,10.81688461,2600.8,2599.8,7.4128]
[1748616998863,10.81688461,2600.8,2599.8,3.2078]
[1748616999067,3.2078,2600.5,2599.4,3.8837]
[1748616999375,3.2078,2600.2,2599.8,0.76908]
[1748616999572,3.2078,2600.2,2599.9,1.2932]
[1748616999864,0.6153,2600.4,2600.1,0.76899]
[1748617000065,0.6153,2600.4,2600.2,1.2932]
[1748617000870,3.2078,2600.5,2600.2,1.2932]
[1748617001073,3.2078,2600.5,2600.4,0.7689]
[1748617001267,0.6677,2600.9,2600.5,0.76887]
[1748617001468,1.29008465,2600.8,2600.6,1.3345]
[1748617001781,3.86377501,2601.0,2600.6,1.3345]
[1748617001972,1.29034184,2600.9,2600.6,1.3345]
[1748617002266,3.86377501,2601.0,2600.6,1.3345]
[1748617002468,2.57789979,2600.9,2600.6,1.3345]
[1748617002774,1.2876,2600.9,2600.6,1.3345]
[1748617002970,1.29076604,2600.8,2600.6,1.3345]
[1748617003168,1.2876,2600.9,2600.6,1.3345]
[1748617003373,1.29080201,2600.8,2600.2,4.205]
[1748617003575,0.6644,2600.8,2600.5,0.76886]
[1748617003872,0.6644,2600.8,2600.6,1.3345]
[1748617004371,1.29111398,2600.7,2600.6,1.3345]
[1748617004871,1.29138206,2600.7,2600.6,1.3345]
[1748617005276,4.49921491,2600.7,2600.0,0.6759]
[1748617005473,1.3282,2600.6,2600.1,1.3295]
[1748617005669,2.61961491,2600.6,2600.1,1.3295]
[1748617006074,1.29141491,2600.5,2600.1,1.3295]
[1748617006571,0.76894,2600.3,2600.1,2.09847]
[1748617006768,0.76894,2600.3,2600.2,1.3295]
[1748617007075,0.76899,2600.1,2600.0,0.6759]
[1748617007371,1.3282,2600.6,2600.0,0.6759]
[1748617007571,1.3282,2600.6,2600.1,1.2833]
[1748617007771,1.29184088,2600.5,2600.1,1.2833]
[1748617008070,1.29184088,2600.4,2600.1,1.2833]
[1748617008274,1.2704,2600.4,2600.1,1.2833]
[1748617008776,4.4782,2600.4,2600.1,1.2833]
[1748617009078,5.48649887,2600.3,2599.8,0.00577501]
[1748617009265,3.2078,2600.1,2599.8,0.00577501]
[1748617009466,1.2704,2600.0,2599.8,0.00577501]
[1748617011372,1.2704,2600.0,2599.8,0.77484501]
[1748617011572,1.2704,2600.0,2599.8,0.00577501]
[1748617012476,3.2078,2600.1,2599.8,0.00577501]
[1748617012675,3.2078,2600.1,2599.9,0.76904]
[1748617012973,1.3042,2600.3,2600.0,1.3287]
[1748617013276,1.3042,2600.3,2600.0,2.09771]
[1748617013478,0.6294,2600.3,2600.0,1.3287]
[1748617013671,3.2078,2600.4,2600.2,0.76895]
[1748617013869,3.2078,2600.4,2600.3,1.2421]
[1748617014071,3.9767,2600.4,2600.3,1.2421]
[1748617014671,0.76902,2600.0,2599.9,0.6716]
[1748617014876,0.76902,2600.0,2599.9,1.9137]
[1748617015176,0.76902,2600.1,2599.9,1.9137]
[1748617015572,0.76902,2600.1,2599.9,2.68273]
[1748617016175,0.6707,2600.2,2599.9,2.68273]
[1748617016474,0.76902,2600.0,2599.9,1.9137]
[1748617018179,0.76905,2599.9,2599.8,0.00577501]
[1748617020275,3.2078,2600.1,2599.8,0.00577501]
[1748617020472,0.76905,2599.9,2599.8,0.00577501]
[1748617020673,0.76905,2599.9,2599.8,2.05015501]
[1748617020972,3.97681,2600.1,2600.0,0.76902]
[1748617021178,0.76902,2600.0,2599.9,0.6548]
[1748617021574,3.2078,2600.1,2599.9,0.6548]
[1748617021575,3.2078,2600.1,2600.0,0.76902]
[1748617021874,3.97679,2600.1,2600.0,0.76902]